fUSD/lending_fUSD_20240905
["ID","MTS","AMOUNT","RATE_DAILY","PERIOD"]
[337206116,1725499875174,-500.0,0.00014984,2]
[337206117,1725499875185,-3102.6,0.00014984,2]
[337206118,1725499875196,-268.11575,0.00014984,2]
[337206119,1725499875205,-500.0,0.00014984,2]
[337206120,1725499875216,-268.11575,0.00014984,2]
[337206121,1725499875227,-3249.89,0.00014984,2]
[337206122,1725499875237,-1474.41,0.00014984,2]
[337206123,1725499875249,-719.24,0.00014984,2]
[337206124,1725499875260,-500.0,0.00014984,2]
[337206125,1725499875269,-1865.89,0.00014984,2]
[337206126,1725499875279,-500.0,0.00014984,2]
[337206127,1725499875288,-500.0,0.00014984,2]
[337206128,1725499875297,-500.0,0.00014984,2]
[337206129,1725499875306,-1003.74,0.00014984,2]
[337206130,1725499875315,-500.0,0.00014984,2]
[337206131,1725499875325,-1176.51,0.00014984,2]
[337206132,1725499875335,-1198.38,0.00014984,2]
[337206133,1725499875346,-151.0,0.00014984,2]
[337206134,1725499875361,-151.0,0.00014984,2]
[337206135,1725499875376,-705.71,0.00014984,2]
[337206136,1725499875386,-645.46,0.00014984,2]
[337206137,1725499875395,-203.61376,0.00014984,2]
[337206138,1725499875404,-151.0,0.00014984,2]
[337206139,1725499875413,-2593.36,0.00014984,2]
[337206140,1725499875423,-232.847996,0.00014984,2]
[337206141,1725499875434,-5343.63,0.00014984,2]
[337206142,1725499875443,-1300.35,0.00014984,2]
[337206143,1725499875453,-151.0,0.00014984,2]
[337206144,1725499875464,-2892.13,0.00014984,2]
[337206145,1725499875473,-151.0,0.00014984,2]
[337206146,1725499875483,-151.0,0.00014984,2]
[337206147,1725499875494,-500.0,0.00014984,2]
[337206148,1725499875503,-151.0,0.00014984,2]
[337206149,1725499875513,-151.0,0.00014984,2]
[337206150,1725499875522,-151.0,0.00014984,2]
[337206151,1725499875531,-2965.78,0.00014984,2]
[337206152,1725499875541,-151.0,0.00014984,2]
[337206153,1725499875550,-775.12,0.00014984,2]
[337206154,1725499875560,-5288.71,0.00014984,2]
[337206155,1725499875569,-2018.99,0.00014984,2]
[337206156,1725499875578,-500.0,0.00014984,2]
[337206157,1725499875588,-500.0,0.00014984,2]
[337206158,1725499875597,-529.0,0.00014984,2]
[337206159,1725499875607,-415.00184184,0.00014984,2]
[337206160,1725499875616,-500.0,0.00014984,2]
[337206161,1725499875625,-500.0,0.00014984,2]
[337206162,1725499875635,-151.0,0.00014984,2]
[337206163,1725499875644,-500.0,0.00014984,2]
[337206164,1725499875655,-1544.76,0.00014984,2]
[337206165,1725499875665,-962.78,0.00014984,2]
[337206166,1725499875675,-1872.09,0.00014984,2]
[337206167,1725499875684,-151.0,0.00014984,2]
[337206168,1725499875694,-151.0,0.00014984,2]
[337206169,1725499875704,-151.0,0.00014984,2]
[337206170,1725499875714,-1714.32,0.00014984,2]
[337206171,1725499875723,-151.0,0.00014984,2]
[337206172,1725499875733,-500.0,0.00014984,2]
[337206173,1725499875743,-500.0,0.00014984,2]
[337206174,1725499875754,-500.0,0.00014984,2]
[337206175,1725499875764,-500.0,0.00014984,2]
[337206176,1725499875773,-583.37,0.00014984,2]
[337206177,1725499875782,-151.0,0.00014984,2]
[337206178,1725499875791,-151.0,0.00014984,2]
[337206179,1725499875801,-153.556495,0.00014984,2]
[337206180,1725499875810,-151.0,0.00014984,2]
[337206181,1725499875821,-205.937477,0.00014984,2]
[337206182,1725499875831,-396.090029,0.00014984,2]
[337206183,1725499875840,-396.090029,0.00014984,2]
[337206184,1725499875849,-542.27,0.00014984,2]
[337206185,1725499875858,-542.27,0.00014984,2]
[337206186,1725499875867,-151.0,0.00014984,2]
[337206187,1725499875878,-151.0,0.00014984,2]
[337206188,1725499875888,-3102.77,0.00014984,2]
[337206189,1725499875900,-151.0,0.00014984,2]
[337206190,1725499875909,-9931.35,0.00014984,2]
[337206191,1725499875919,-9931.35,0.00014984,2]
[337206192,1725499875928,-500.0,0.00014984,2]
[337206193,1725499875938,-500.0,0.00014984,2]
[337206194,1725499875947,-220.437211,0.00014984,2]
[337206195,1725499875957,-500.0,0.00014984,2]
[337206196,1725499875966,-151.0,0.00014984,2]
[337206197,1725499875976,-357.382535,0.00014984,2]
[337206198,1725499875986,-151.0,0.00014984,2]
[337206199,1725499875996,-357.382535,0.00014984,2]
[337206200,1725499876006,-500.0,0.00014984,2]
[337206201,1725499876015,-838.18,0.00014984,2]
[337206202,1725499876025,-500.0,0.00014984,2]
[337206203,1725499876035,-151.0,0.00014984,2]
[337206204,1725499876045,-500.0,0.00014984,2]
[337206205,1725499876054,-151.0,0.00014984,2]
[337206206,1725499876063,-961.501084,0.00014984,2]
[337206207,1725499876073,-961.501084,0.00014984,2]
[337206208,1725499876083,-324.549997,0.00014984,2]
[337206209,1725499876093,-851.81,0.00014984,2]
[337206210,1725499876103,-851.81,0.00014984,2]
[337206211,1725499876113,-1287.92,0.00014984,2]
[337206212,1725499876122,-324.549997,0.00014984,2]
[337206213,1725499876132,-171.763337,0.00014984,2]
[337206214,1725499876142,-153.537719,0.00014984,2]
[337206215,1725499876153,-171.763337,0.00014984,2]
[337206216,1725499876163,-500.0,0.00014984,2]
[337206217,1725499876172,-500.0,0.00014984,2]
[337206218,1725499876182,-500.0,0.00014984,2]
[337206219,1725499876191,-500.0,0.00014984,2]
[337206220,1725499876200,-509.63431279,0.00014984,2]
[337206221,1725499876210,-500.0,0.00014984,2]
[337206222,1725499876220,-500.0,0.00014984,2]
[337206223,1725499876229,-1915.76,0.00014984,2]
[337206224,1725499876239,-2974.77,0.00014984,2]
[337206225,1725499876249,-1915.76,0.00014984,2]
[337206226,1725499876258,-151.0,0.00014984,2]
[337206227,1725499876267,-1003.28,0.00014984,2]
[337206228,1725499876277,-203.367203,0.00014984,2]
[337206229,1725499876287,-2944.76,0.00014984,2]
[337206230,1725499876297,-2944.76,0.00014984,2]
[337206231,1725499876306,-151.0,0.00014984,2]
[337206232,1725499876316,-500.0,0.00014984,2]
[337206233,1725499876326,-203.367203,0.00014984,2]
[337206234,1725499876335,-151.0,0.00014984,2]
[337206235,1725499876345,-162.853998,0.00014984,2]
[337206236,1725499876356,-224.114508,0.00014984,2]
[337206237,1725499876368,-162.853998,0.00014984,2]
[337206238,1725499876378,-224.114508,0.00014984,2]
[337206239,1725499876387,-1491.94,0.00014984,2]
[337206240,1725499876397,-1491.94,0.00014984,2]
[337206241,1725499876419,-663.021085,0.00014984,2]
[337206242,1725499876429,-151.0,0.00014984,2]
[337206243,1725499876441,-663.021085,0.00014984,2]
[337206244,1725499876453,-500.0,0.00014984,2]
[337206245,1725499876463,-1400.06,0.00014984,2]
[337206246,1725499876472,-1400.06,0.00014984,2]
[337206247,1725499876482,-151.0,0.00014984,2]
[337206248,1725499876492,-934.659004,0.00014984,2]
[337206249,1725499876501,-934.659004,0.00014984,2]
[337206250,1725499876511,-151.0,0.00014984,2]
[337206251,1725499876521,-151.0,0.00014984,2]
[337206252,1725499876531,-151.0,0.00014984,2]
[337206253,1725499876540,-151.0,0.00014984,2]
[337206254,1725499876550,-327.711551,0.00014984,2]
[337206255,1725499876559,-327.711551,0.00014984,2]
[337206256,1725499876569,-327.711551,0.00014984,2]
[337206257,1725499876578,-327.711551,0.00014984,2]
[337206258,1725499876587,-500.0,0.00014984,2]
[337206259,1725499876597,-510.75153885,0.00014984,2]
[337206260,1725499876606,-500.0,0.00014984,2]
[337206261,1725499876615,-500.0,0.00014984,2]
[337206262,1725499876624,-370.779484,0.00014984,2]
[337206263,1725499876633,-370.779484,0.00014984,2]
[337206264,1725499876643,-370.779484,0.00014984,2]
[337206265,1725499876655,-500.0,0.00014984,2]
[337206266,1725499876664,-500.0,0.00014984,2]
[337206267,1725499876673,-370.779484,0.00014984,2]
[337206268,1725499876683,-500.0,0.00014984,2]
[337206269,1725499876692,-500.0,0.00014984,2]
[337206270,1725499876763,-295.823592,0.00014984,2]
[337206271,1725499876773,-230.73543,0.00014984,2]
[337206272,1725499876782,-230.73543,0.00014984,2]
[337206273,1725499876791,-151.0,0.00014984,2]
[337206274,1725499876801,-1095.43,0.00014984,2]
[337206275,1725499876809,-151.0,0.00014984,2]
[337206276,1725499876818,-1095.43,0.00014984,2]
[337206277,1725499876827,-230.73543,0.00014984,2]
[337206278,1725499876836,-230.73543,0.00014984,2]
[337206279,1725499876845,-500.0,0.00014984,2]
[337206280,1725499876856,-500.0,0.00014984,2]
[337206281,1725499876865,-1344.35,0.00014984,2]
[337206282,1725499876875,-1344.35,0.00014984,2]
[337206283,1725499876885,-151.0,0.00014984,2]
[337206284,1725499876895,-151.0,0.00014984,2]
[337206285,1725499876906,-879.59,0.00014984,2]
[337206286,1725499876916,-879.59,0.00014984,2]
[337206287,1725499876925,-1331.6,0.00014984,2]
[337206288,1725499876937,-1331.6,0.00014984,2]
[337206289,1725499876947,-500.0,0.00014984,2]
[337206290,1725499876958,-151.0,0.00014984,2]
[337206291,1725499876967,-151.0,0.00014984,2]
[337206292,1725499876978,-500.0,0.00014984,2]
[337206293,1725499876988,-151.0,0.00014984,2]
[337206294,1725499876998,-500.0,0.00014984,2]
[337206295,1725499877007,-151.0,0.00014984,2]
[337206296,1725499877016,-1832.572372,0.00014984,2]
[337206297,1725499877027,-500.0,0.00014984,2]
[337206298,1725499877037,-760.89,0.00014984,2]
[337206299,1725499877047,-760.89,0.00014984,2]
[337206300,1725499877056,-151.0,0.00014984,2]
[337206301,1725499877065,-1832.572372,0.00014984,2]
[337206302,1725499877076,-500.0,0.00014984,2]
[337206303,1725499877085,-500.0,0.00014984,2]
[337206304,1725499877095,-500.0,0.00014984,2]
[337206305,1725499877105,-500.0,0.00014984,2]
[337206306,1725499877115,-151.0,0.00014984,2]
[337206307,1725499877125,-500.0,0.00014984,2]
[337206308,1725499877134,-500.0,0.00014984,2]
[337206309,1725499877144,-2543.27,0.00014984,2]
[337206310,1725499877155,-346.061427,0.00014984,2]
[337206311,1725499877163,-151.0,0.00014984,2]
[337206312,1725499877172,-346.061427,0.00014984,2]
[337206313,1725499877181,-3678.48,0.00014984,2]
[337206314,1725499877191,-160.309653,0.00014984,2]
[337206315,1725499877200,-2261.89,0.00014984,2]
[337206316,1725499877210,-2261.89,0.00014984,2]
[337206317,1725499877219,-543.44,0.00014984,2]
[337206318,1725499877229,-151.0,0.00014984,2]
[337206319,1725499877238,-500.0,0.00014984,2]
[337206320,1725499877247,-500.0,0.00014984,2]
[337206321,1725499877257,-2557.95,0.00014984,2]
[337206322,1725499877266,-1335.99,0.00014984,2]
[337206323,1725499877276,-1335.99,0.00014984,2]
[337206324,1725499877285,-500.0,0.00014984,2]
[337206325,1725499877295,-575.4,0.00014984,2]
[337206326,1725499877304,-500.0,0.00014984,2]
[337206327,1725499877313,-500.0,0.00014984,2]
[337206328,1725499877323,-154.049684,0.00014984,2]
[337206329,1725499877334,-212.713621,0.00014984,2]
[337206330,1725499877343,-212.713621,0.00014984,2]
[337206331,1725499877352,-212.713621,0.00014984,2]
[337206332,1725499877364,-212.713621,0.00014984,2]
[337206333,1725499877374,-357.864108,0.00014984,2]
[337206334,1725499877383,-357.864108,0.00014984,2]
[337206335,1725499877392,-231.934886,0.00014984,2]
[337206336,1725499877403,-357.864108,0.00014984,2]
[337206337,1725499877417,-357.864108,0.00014984,2]
[337206338,1725499877427,-231.934886,0.00014984,2]
[337206339,1725499877436,-355.451856,0.00014984,2]
[337206340,1725499877445,-151.0,0.00014984,2]
[337206341,1725499877454,-355.451856,0.00014984,2]
[337206342,1725499877463,-151.0,0.00014984,2]
[337206343,1725499877472,-355.451856,0.00014984,2]
[337206344,1725499877481,-355.451856,0.00014984,2]
[337206345,1725499877491,-241.426485,0.00014984,2]
[337206346,1725499877499,-241.426485,0.00014984,2]
[337206347,1725499877509,-318.499121,0.00014984,2]
[337206348,1725499877518,-318.499121,0.00014984,2]
[337206349,1725499877527,-318.499121,0.00014984,2]
[337206350,1725499877536,-318.499121,0.00014984,2]
[337206351,1725499877546,-151.0,0.00014984,2]
[337206352,1725499877555,-500.0,0.00014984,2]
[337206353,1725499877564,-151.0,0.00014984,2]
[337206354,1725499877573,-500.0,0.00014984,2]
[337206355,1725499877582,-199.077694,0.00014984,2]
[337206356,1725499877592,-199.077694,0.00014984,2]
[337206357,1725499877601,-234.534679,0.00014984,2]
[337206358,1725499877611,-234.534679,0.00014984,2]
[337206359,1725499877620,-151.0,0.00014984,2]
[337206360,1725499877629,-199.077694,0.00014984,2]
[337206361,1725499877639,-199.077694,0.00014984,2]
[337206362,1725499877648,-234.534679,0.00014984,2]
[337206363,1725499877662,-234.534679,0.00014984,2]
[337206364,1725499877671,-246.38324,0.00014984,2]
[337206365,1725499877680,-151.0,0.00014984,2]
[337206366,1725499877689,-151.0,0.00014984,2]
[337206367,1725499877699,-246.38324,0.00014984,2]
[337206368,1725499877708,-500.0,0.00014984,2]
[337206369,1725499877717,-500.0,0.00014984,2]
[337206370,1725499877727,-500.0,0.00014984,2]
[337206371,1725499877736,-500.0,0.00014984,2]
[337206372,1725499877745,-151.0,0.00014984,2]
[337206373,1725499877754,-151.0,0.00014984,2]
[337206374,1725499877763,-694.89,0.00014984,2]
[337206375,1725499877772,-151.0,0.00014984,2]
[337206376,1725499877781,-151.0,0.00014984,2]
[337206377,1725499877790,-500.0,0.00014984,2]
[337206378,1725499877799,-236.737176,0.00014984,2]
[337206379,1725499877808,-236.737176,0.00014984,2]
[337206380,1725499877817,-1165.999936,0.00014984,2]
[337206381,1725499877826,-1165.999936,0.00014984,2]
[337206382,1725499877835,-236.737176,0.00014984,2]
[337206383,1725499877844,-236.737176,0.00014984,2]
[337206384,1725499877853,-1165.999936,0.00014984,2]
[337206385,1725499877862,-1165.999936,0.00014984,2]
[337206386,1725499877871,-4837.029733,0.00014984,2]
[337206387,1725499877880,-4837.029733,0.00014984,2]
[337206388,1725499877890,-500.0,0.00014984,2]
[337206389,1725499877900,-450.18161471,0.00014984,2]
[337206390,1725499877909,-260.457054,0.00014984,2]
[337206391,1725499877918,-260.457054,0.00014984,2]
[337206392,1725499877927,-756.23,0.00014984,2]
[337206393,1725499877936,-756.23,0.00014984,2]
[337206394,1725499877946,-756.23,0.00014984,2]
[337206395,1725499877955,-178.955583,0.00014984,2]
[337206396,1725499877964,-151.0,0.00014984,2]
[337206397,1725499877973,-178.955583,0.00014984,2]
[337206398,1725499877982,-151.642562,0.00014984,2]
[337206399,1725499877992,-798.474883,0.00014984,2]
[337206400,1725499878001,-798.474883,0.00014984,2]
[337206401,1725499878010,-798.474883,0.00014984,2]
[337206402,1725499878019,-798.474883,0.00014984,2]
[337206403,1725499878029,-699.983479,0.00014984,2]
[337206404,1725499878038,-699.983479,0.00014984,2]
[337206405,1725499878048,-151.0,0.00014984,2]
[337206406,1725499878057,-151.0,0.00014984,2]
[337206407,1725499878067,-1978.45,0.00014985,2]
[337206408,1725499878076,-1109.11,0.00014985,2]
[337206409,1725499878085,-500.0,0.00014985,2]
[337206410,1725499878095,-500.0,0.00014985,2]
[337206411,1725499878104,-2276.04,0.00014985,2]
[337206412,1725499878113,-1727.37,0.00014985,2]
[337206413,1725499878123,-789.54,0.00014985,2]
[337206414,1725499878132,-500.0,0.00014985,2]
[337206415,1725499878141,-500.0,0.00014985,2]
[337206416,1725499878152,-1052.66,0.00014985,2]
[337206417,1725499878162,-500.0,0.00014985,2]
[337206418,1725499878171,-727.65,0.00014985,2]
[337206419,1725499878181,-847.26,0.00014985,2]
[337206420,1725499878190,-972.62,0.00014985,2]
[337206421,1725499878199,-588.32,0.00014985,2]
[337206422,1725499878208,-690.51,0.00014985,2]
[337206423,1725499878217,-948.49,0.00014985,2]
[337206424,1725499878227,-718.09,0.00014985,2]
[337206425,1725499878236,-500.0,0.00014985,2]
[337206426,1725499878245,-500.0,0.00014985,2]
[337206427,1725499878255,-707.13,0.00014985,2]
[337206428,1725499878265,-1081.42,0.00014985,2]
[337206429,1725499878274,-589.04,0.00014985,2]
[337206430,1725499878283,-883.63,0.00014985,2]
[337206431,1725499878292,-819.6,0.00014985,2]
[337206432,1725499878302,-163.50360963,0.00014985,2]
[337206433,1725499878310,-500.0,0.00014985,2]
[337206434,1725499878320,-570.19541297,0.00014985,2]
[337206435,1725499878329,-677.47,0.00014985,2]
[337206436,1725499878338,-1099.51,0.00014985,2]
[337206437,1725499878348,-500.0,0.00014985,2]
[337206438,1725499878359,-1306.19,0.00014985,2]
[337206439,1725499878369,-1854.25,0.00014985,2]
[337206440,1725499878379,-575.93,0.00014985,2]
[337206441,1725499878388,-1571.84,0.00014985,2]
[337206442,1725499878397,-857.22,0.00014985,2]
[337206443,1725499878409,-500.0,0.00014985,2]
[337206444,1725499878419,-572.98,0.00014985,2]
[337206445,1725499878429,-999.59,0.00014985,2]
[337206446,1725499878441,-500.0,0.00014985,2]
[337206447,1725499878451,-1191.68,0.00014985,2]
[337206448,1725499878461,-1421.44,0.00014985,2]
[337206449,1725499878470,-500.0,0.00014985,2]
[337206450,1725499878480,-524.41,0.00014985,2]
[337206451,1725499878490,-533.2,0.00014985,2]
[337206452,1725499878499,-500.0,0.00014985,2]
[337206453,1725499878508,-2448.06,0.00014985,2]
[337206454,1725499878518,-4417.42,0.00014985,2]
[337206455,1725499878527,-500.0,0.00014985,2]
[337206456,1725499878537,-4965.31,0.00014985,2]
[337206457,1725499878547,-739.07,0.00014985,2]
[337206458,1725499878558,-538.87,0.00014985,2]
[337206459,1725499878568,-586.76,0.00014985,2]
[337206460,1725499878578,-540.47,0.00014985,2]
[337206461,1725499878588,-500.0,0.00014985,2]
[337206462,1725499878598,-708.92,0.00014985,2]
[337206463,1725499878607,-576.1,0.00014985,2]
[337206464,1725499878617,-515.58,0.00014985,2]
[337206465,1725499878627,-748.71,0.00014985,2]
[337206466,1725499878637,-998.24,0.00014985,2]
[337206467,1725499878647,-500.0,0.00014985,2]
[337206468,1725499878660,-551.57204992,0.00014985,2]
[337206469,1725499878670,-718.06,0.00014985,2]
[337206470,1725499878680,-825.19,0.00014985,2]
[337206471,1725499878691,-1083.4,0.00014985,2]
[337206472,1725499878701,-688.84,0.00014985,2]
[337206473,1725499878711,-915.18,0.00014985,2]
[337206474,1725499878722,-790.45,0.00014985,2]
[337206475,1725499878732,-1362.47,0.00014985,2]
[337206476,1725499878742,-682.1,0.00014985,2]
[337206477,1725499878752,-970.24,0.00014985,2]
[337206478,1725499878763,-573.0,0.00014985,2]
[337206479,1725499878773,-983.94,0.00014985,2]
[337206480,1725499878782,-500.0,0.00014985,2]
[337206481,1725499878792,-624.47,0.00014985,2]
[337206482,1725499878802,-667.36,0.00014985,2]
[337206483,1725499878812,-1798.63,0.00014985,2]
[337206484,1725499878822,-596.99,0.00014985,2]
[337206485,1725499878833,-1086.08,0.00014985,2]
[337206486,1725499878842,-538.47,0.00014985,2]
[337206487,1725499878852,-500.0,0.00014985,2]
[337206488,1725499878863,-972.25,0.00014985,2]
[337206489,1725499878873,-500.0,0.00014985,2]
[337206490,1725499878883,-500.0,0.00014985,2]
[337206491,1725499878892,-500.0,0.00014985,2]
[337206492,1725499878905,-500.0,0.00014985,2]
[337206493,1725499878914,-3409.91,0.00014985,2]
[337206494,1725499878924,-1033.94,0.00014985,2]
[337206495,1725499878934,-15533.41,0.00014985,2]
[337206496,1725499878943,-500.0,0.00014985,2]
[337206497,1725499878953,-500.0,0.00014985,2]
[337206498,1725499878963,-500.0,0.00014985,2]
[337206499,1725499878973,-500.0,0.00014985,2]
[337206500,1725499878983,-3587.56,0.00014985,2]
[337206501,1725499878993,-1936.63,0.00014985,2]
[337206502,1725499879003,-941.98,0.00014985,2]
[337206503,1725499879013,-1133.18,0.00014985,2]
[337206504,1725499879023,-730.51,0.00014985,2]
[337206505,1725499879033,-530.75,0.00014985,2]
[337206506,1725499879042,-847.62,0.00014985,2]
[337206507,1725499879052,-8263.51,0.00014985,2]
[337206508,1725499879062,-1430.56,0.00014985,2]
[337206509,1725499879072,-500.0,0.00014985,2]
[337206510,1725499879081,-749.5,0.00014985,2]
[337206511,1725499879090,-2081.3,0.00014985,2]
[337206512,1725499879100,-533.9,0.00014985,2]
[337206513,1725499879109,-1510.15,0.00014985,2]
[337206514,1725499879120,-1014.16,0.00014985,2]
[337206515,1725499879129,-500.83,0.00014985,2]
[337206516,1725499879139,-1256.44,0.00014985,2]
[337206517,1725499879151,-3214.3,0.00014985,2]
[337206518,1725499879161,-619.80519367,0.00014985,2]
[337206519,1725499879171,-568.54,0.00014985,2]
[337206520,1725499879181,-2452.82,0.00014985,2]
[337206521,1725499879190,-500.0,0.00014985,2]
[337206522,1725499879200,-500.34,0.00014985,2]
[337206523,1725499879210,-1737.85,0.00014985,2]
[337206524,1725499879220,-2912.57,0.00014985,2]
[337206525,1725499879230,-2743.76,0.00014985,2]
[337206526,1725499879240,-378.24414413,0.00014985,2]
[337206527,1725499879250,-500.0,0.00014985,2]
[337206528,1725499879260,-2136.38,0.00014985,2]
[337206529,1725499879269,-1720.65,0.00014985,2]
[337206530,1725499879279,-515.95,0.00014985,2]
[337206531,1725499879288,-1078.74,0.00014985,2]
[337206532,1725499879298,-1635.58,0.00014985,2]
[337206533,1725499879308,-500.0,0.00014985,2]
[337206534,1725499879317,-500.0,0.00014985,2]
[337206535,1725499879326,-500.0,0.00014985,2]
[337206536,1725499879336,-500.0,0.00014985,2]
[337206537,1725499879345,-500.0,0.00014985,2]
[337206538,1725499879355,-500.0,0.00014985,2]
[337206539,1725499879369,-500.0,0.00014985,2]
[337206540,1725499879380,-500.0,0.00014985,2]
[337206541,1725499879389,-500.0,0.00014985,2]
[337206542,1725499879399,-500.0,0.00014985,2]
[337206543,1725499879409,-500.0,0.00014985,2]
[337206544,1725499879419,-502.43,0.00014985,2]
[337206545,1725499879429,-502.43,0.00014985,2]
[337206546,1725499879439,-566.68,0.00014985,2]
[337206547,1725499879450,-566.68,0.00014985,2]
[337206548,1725499879460,-506.22843135,0.00014985,2]
[337206549,1725499879471,-523.34,0.00014985,2]
[337206550,1725499879481,-523.34,0.00014985,2]
[337206551,1725499879491,-500.0,0.00014985,2]
[337206552,1725499879501,-500.0,0.00014985,2]
[337206553,1725499879510,-500.0,0.00014985,2]
[337206554,1725499879520,-500.0,0.00014985,2]
[337206555,1725499879530,-500.0,0.00014985,2]
[337206556,1725499879540,-500.0,0.00014985,2]
[337206557,1725499879550,-500.0,0.00014985,2]
[337206558,1725499879559,-500.0,0.00014985,2]
[337206559,1725499879569,-500.0,0.00014985,2]
[337206560,1725499879578,-500.0,0.00014985,2]
[337206561,1725499879588,-500.0,0.00014985,2]
[337206562,1725499879597,-500.0,0.00014985,2]
[337206563,1725499879607,-684.18,0.00014985,2]
[337206564,1725499879616,-684.18,0.00014985,2]
[337206565,1725499879625,-500.0,0.00014985,2]
[337206566,1725499879634,-500.0,0.00014985,2]
[337206567,1725499879643,-500.0,0.00014985,2]
[337206568,1725499879653,-500.0,0.00014985,2]
[337206569,1725499879662,-689.4,0.00014985,2]
[337206570,1725499879672,-689.4,0.00014985,2]
[337206571,1725499879681,-500.0,0.00014985,2]
[337206572,1725499879690,-500.0,0.00014985,2]
[337206573,1725499879699,-500.0,0.00014985,2]
[337206574,1725499879708,-500.0,0.00014985,2]
[337206575,1725499879718,-500.0,0.00014985,2]
[337206576,1725499879727,-500.0,0.00014985,2]
[337206577,1725499879736,-500.0,0.00014985,2]
[337206578,1725499879745,-500.0,0.00014985,2]
[337206579,1725499879754,-500.0,0.00014985,2]
[337206580,1725499879763,-500.0,0.00014985,2]
[337206581,1725499879772,-500.0,0.00014985,2]
[337206582,1725499879781,-500.0,0.00014985,2]
[337206583,1725499879790,-500.0,0.00014985,2]
[337206584,1725499879799,-279.08,0.00014985,2]
[337206585,1725499879808,-500.0,0.00014985,2]
[337206586,1725499879817,-500.0,0.00014985,2]
[337206587,1725499879825,-393.06435797,0.00014985,2]
[337206588,1725499879834,-500.0,0.00014985,2]
[337206589,1725499879843,-500.0,0.00014985,2]
[337206590,1725499879852,-523.43,0.00014985,2]
[337206591,1725499879860,-523.43,0.00014985,2]
[337206592,1725499879870,-1063.87,0.00014985,2]
[337206593,1725499879880,-1063.87,0.00014985,2]
[337206594,1725499879889,-500.0,0.00014985,2]
[337206595,1725499879900,-500.0,0.00014985,2]
[337206596,1725499879909,-500.0,0.00014985,2]
[337206597,1725499879918,-500.0,0.00014985,2]
[337206598,1725499879927,-748.34,0.00014985,2]
[337206599,1725499879936,-748.34,0.00014985,2]
[337206600,1725499879945,-242.94341422,0.00014985,2]
[337206601,1725499879954,-680.6,0.00014985,2]
[337206602,1725499879963,-680.6,0.00014985,2]
[337206603,1725499879972,-1068.03,0.00014985,2]
[337206604,1725499879982,-1068.03,0.00014985,2]
[337206605,1725499879991,-1165.14,0.00014985,2]
[337206606,1725499880000,-1165.14,0.00014985,2]
[337206607,1725499880009,-500.0,0.00014985,2]
[337206608,1725499880018,-500.0,0.00014985,2]
[337206609,1725499880027,-500.0,0.00014985,2]
[337206610,1725499880036,-500.0,0.00014985,2]
[337206611,1725499880045,-626.51,0.00014985,2]
[337206612,1725499880054,-626.51,0.00014985,2]
[337206613,1725499880063,-500.0,0.00014985,2]
[337206614,1725499880073,-500.0,0.00014985,2]
[337206615,1725499880081,-500.0,0.00014985,2]